[Event "15th Arad Open 2022"]
[Site "Arad"]
[Date "2022.08.10"]
[Round "4.3"]
[White "Sedlak, Nikola"]
[Black "Pauwels, Xander"]
[Result "1-0"]
[ECO "B51"]
[WhiteElo "2480"]
[BlackElo "2040"]
[Annotator "TA"]
[PlyCount "71"]
[EventDate "2022.08.08"]
[EventType "swiss"]
[EventCountry "ROU"]
[SourceTitle "playchess.com"]
[Source "ChessBase"]
[SourceQuality "1"]
[TimeControl "5400+30"]

{[%evp 9,71,13,35,36,44,51,97,109,98,101,91,58,87,68,67,22,33,10,19,23,27,29,35,48,33,32,41,0,0,0,0,0,36,50,38,32,43,38,66,77,78,75,60,0,0,0,0,-29,86,91,61,-174,-175,-177,10,0,0,15,14,0,48,51,369,361]} 1. e4 {[%emt 0:00:09]} c5 {[%emt 0:00:36]} 2. Nf3 {[%emt 0:00:17]} d6 {[%emt 0:00:17]} 3. Bb5+ {[%emt 0:00:42]} Nd7 {[%emt 0:01:06]} 4. O-O {[%emt 0:00:28]} a6 {[%emt 0:01:04]} 5. Bd3 {[%emt 0:00:09]} b5 {[%emt 0:08:18]} 6. c4 {[%emt 0:00:45] B51: Sicilian: Moscow Variation (3 Bb5+) without 3...Bd7.} b4 {[%emt 0:06:00]} 7. a3 {[%emt 0:00:45]} Bb7 {[%emt 0:02:26]} (7... bxa3 $14 {deserves consideration.} 8. Rxa3 Ngf6) 8. axb4 $16 {[%emt 0:00:15] White is better.} cxb4 {[%emt 0:00:04]} 9. Bc2 {[%emt 0:02:51]} Ngf6 {[%emt 0:02:17]} 10. Re1 {[%emt 0:03:29]} e5 {[%emt 0:08:30]} 11. d4 {[%emt 0:01:09]} Be7 {[%emt 0:05:16]} 12. b3 {[%emt 0:01:27][%cal Oc4c5]} O-O {[%emt 0:01:31]} 13. Bb2 {[%emt 0:00:06]} Qc7 {[%emt 0:01:31]} 14. Nbd2 {[%emt 0:00:09][%cal Oc4c5]} Rfe8 {[%emt 0:00:41]} 15. Rc1 {[%emt 0:02:03][%cal Oc4c5] [#]} Rad8 $146 {[%emt 0:06:58]} ({Predecessor:} 15... Rac8 16. c5 Qb8 17. Nc4 exd4 18. cxd6 Bxd6 19. Qxd4 Bc5 20. Qd2 Rcd8 21. Qg5 h6 {0-1 (58) De La Puerta Cresis,J (2167)-Forgas Moreno,Y (2310) La Roda 2021}) 16. c5 {[%emt 0:13:11]} dxc5 {[%emt 0:17:13]} 17. d5 {[%emt 0:00:34]} Bd6 {[%emt 0:01:01]} 18. Bd3 {[%emt 0:05:50][%mdl 1024] White has compensation.} Nb6 {[%emt 0:02:22]} 19. Nf1 {[%emt 0:07:59]} Ra8 {[%emt 0:03:54]} 20. Ne3 {[%emt 0:00:35]} g6 {[%emt 0:03:02]} 21. Nd2 {[%emt 0:02:19]} Nfd7 {[%emt 0:02:10]} 22. Ra1 {[%emt 0:03:51]} Bf8 {[%emt 0:04:35]} 23. Qe2 {[%emt 0:01:09]} a5 {[%emt 0:00:43]} 24. Bb5 {[%emt 0:00:11] Prevents a4.} Ra7 {[%emt 0:02:30]} 25. Ndc4 {[%emt 0:05:56] Hoping for Nxb6.} Rea8 {[%emt 0:02:49]} 26. d6 {[%emt 0:08:10]} (26. Nxb6 $14 Nxb6 27. f4) 26... Bxd6 $11 {[%emt 0:06:42]} 27. Rad1 {[%emt 0:02:52]} Bf8 {[%emt 0:01:22]} 28. Qf3 {[%emt 0:09:23]} Bc6 {[%emt 0:03:36]} (28... Ba6 $11 29. Ng4 (29. Bxa6 Rxa6 30. Qh3 Qc8 $17) 29... Bg7) 29. Nxb6 $1 $16 {[%emt 0:14:12] White is much more active.} Nxb6 {[%emt 0:00:39] [#]} 30. Bxc6 {[%emt 0:02:23]} (30. Qf6 $1 $14 Bxb5 31. Bxe5 Qxe5 32. Qxe5) 30... Qxc6 $19 {[%emt 0:00:04]} 31. Bxe5 {[%emt 0:00:04] [#]} Re8 $2 {[%emt 0:04:35]} ({Worse is} 31... a4 32. Ng4 axb3 33. Nf6+ Kg7 34. Qh3 $11) (31... Nd7 $1 $19 {[%cal Rd7e5]} 32. Bb2 a4 33. bxa4 Re8) 32. Ng4 $40 {[%emt 0:00:29][%mdl 128] White is up to no good.} Rxe5 $1 {[%emt 0:00:28]} 33. Nxe5 {[%emt 0:00:24]} Qe6 {[%emt 0:00:29]} 34. Ng4 {[%emt 0:00:19]} Be7 {[%emt 0:01:39] Against Rd8+} (34... c4 $11) 35. e5 $14 {[%emt 0:00:56]} Kg7 $2 {[%emt 0:00:42][%mdl 8192] [#] Against Nf6} ({Better is} 35... a4 $1 $14) 36. Qf6+ $3 {[%emt 0:02:58][%mdl 512] Weighted Error Value: White=0.14 (very precise) /Black=0.38} 1-0

[Event "15th Arad Open 2022"]
[Site "Arad"]
[Date "2022.08.10"]
[Round "4.4"]
[White "Moerman, Thomas"]
[Black "David, Alexandru-Vasile"]
[Result "0-1"]
[ECO "E93"]
[WhiteElo "2026"]
[BlackElo "2433"]
[Annotator "TA"]
[PlyCount "60"]
[EventDate "2022.08.08"]
[EventType "swiss"]
[EventCountry "ROU"]
[SourceTitle "playchess.com"]
[Source "ChessBase"]
[SourceQuality "1"]
[TimeControl "5400+30"]

{[%evp 16,59,41,35,37,-4,0,-99,-113,-90,-104,-177,-78,-94,-84,-85,-81,-78,-77,-81,-90,-91,-100,-112,-118,-481,-258,-262,-267,-260,-251,-737,-740,-655,-511,-794,-739,-962,-956,-29993,-29994,-29994,-29995,-29995,-29995,-29999]} 1. d4 {[%emt 0:00:03]} Nf6 {[%emt 0:00:59]} 2. c4 {[%emt 0:00:12]} g6 {[%emt 0:00:06]} 3. Nc3 {[%emt 0:00:24]} Bg7 {[%emt 0:00:15]} 4. Nf3 {[%emt 0:00:35]} O-O {[%emt 0:00:20]} 5. e4 {[%emt 0:00:13]} d6 {[%emt 0:00:23]} 6. Be2 {[%emt 0:00:08]} Nbd7 {[%emt 0:00:16]} 7. h3 {[%emt 0:00:21]} e5 {[%emt 0:01:39]} 8. d5 {[%emt 0:00:17]} Nc5 {[%emt 0:04:59]} 9. Qc2 {[%emt 0:00:19]} Nh5 {[%emt 0:02:27] E93: King's Indian: Classical: Petrosian System with 7...Nbd7.} 10. g3 {[%emt 0:01:34]} f5 {[%emt 0:03:28]} 11. Nh4 {[%emt 0:03:56] [#]} (11. Bg5 $11 Nf6 12. Nd2) 11... Nf4 $1 $17 {[%emt 0:04:22] [#] Black is better.} 12. exf5 $146 {[%emt 0:05:32] Strongly threatening b4.} ({Predecessor:} 12. Be3 Nxe2 13. Qxe2 f4 14. Bxc5 fxg3 15. fxg3 dxc5 16. O-O-O Qg5+ 17. Kb1 Qxg3 18. Qe1 Qxe1 19. Rdxe1 {0-1 (33) Tomiello,M (1969)-Makarian,R (2442) Chess.com INT 2020}) 12... Nxe2 {[%emt 0:03:58]} (12... gxf5 $6 13. Bf1 $11) 13. fxg6 {[%emt 0:11:52]} (13. Qxe2 $17 e4 14. O-O (14. Nxe4 $2 Nxe4 15. O-O gxf5 $19)) 13... Nd4 {[%emt 0:10:08]} (13... Nxc1 $19 {is more deadly.} 14. gxh7+ Kh8 15. Rxc1 (15. Ng6+ $2 Kxh7 16. Nxf8+ Kg8 $19) 15... e4 16. Ng6+ Kxh7 17. Nxf8+ Qxf8) 14. gxh7+ {[%emt 0:00:35]} Kh8 {[%emt 0:00:04] 0x0.0002da215f5edp-1022s more active pieces. The white rooks are badly placed.} 15. Ng6+ {[%emt 0:01:22]} Kxh7 {[%emt 0:02:45][%cal Bh8h7,Bh7g8,Bg8f8][%mdl 32]} 16. Nxf8+ {[%emt 0:00:36]} Kg8 {[%emt 0:00:05]} 17. Qh7+ {[%emt 0:01:20]} Kxf8 {[%emt 0:00:05]} 18. g4 {[%emt 0:14:09] [#] Prevents Bf5.} Qf6 $1 $36 {[%emt 0:09:08][%mdl 3072] Black has strong compensation. Black is in control.} 19. Be3 {[%emt 0:11:13]} Bd7 {[%emt 0:11:51] White must now prevent ...Be8.} 20. b4 $2 {[%emt 0:14:31][%mdl 8192] [#] Loses the game.} (20. O-O $17 {is tougher.}) 20... Be8 $1 {[%emt 0:13:30]} 21. g5 $19 {[%emt 0:06:54]} ({Don't go for} 21. bxc5 $2 Bg6 22. Qxg6 (22. g5 $2 Qf7 $19) 22... Qxg6 $19) 21... Qf3 {[%emt 0:00:10]} 22. Kd2 {[%emt 0:03:34]} Na4 {[%emt 0:04:48] Chess con chili.} 23. Rae1 $2 {[%emt 0:08:25]} (23. Qe4 Nxc3 24. Qxf3+ Nxf3+ 25. Kxc3) 23... Nxc3 {[%emt 0:02:48]} 24. Kxc3 {[%emt 0:00:21]} Bd7 {[%emt 0:02:28]} 25. Kb2 {[%emt 0:03:42]} (25. Qb1 $142 Ba4 26. Rhg1) 25... Bf5 {[%emt 0:01:21]} 26. g6 {[%emt 0:00:56]} Qe4 {[%emt 0:00:21] ( -> ...Qc2+)} 27. Bxd4 {[%emt 0:08:22]} Qxd4+ {[%emt 0:00:41] Black mates.} 28. Kb3 {[%emt 0:00:27]} Qd3+ {[%emt 0:00:08]} 29. Ka4 {[%emt 0:01:20]} Bd7+ {[%emt 0:00:11] This bishop pair is nice.} 30. Ka5 {[%emt 0:00:14]} Qa3# {[%emt 0:21:46] Weighted Error Value: White=0.96/Black=0.40} 0-1

[Event "15th Arad Open 2022"]
[Site "Arad"]
[Date "2022.08.10"]
[Round "4.5"]
[White "Magold, Victor"]
[Black "Ardeleanu, Alin"]
[Result "1/2-1/2"]
[ECO "E61"]
[WhiteElo "2074"]
[BlackElo "2290"]
[Annotator "TA"]
[PlyCount "78"]
[EventDate "2022.08.08"]
[EventType "swiss"]
[EventCountry "ROU"]
[SourceTitle "playchess.com"]
[Source "ChessBase"]
[SourceQuality "1"]
[TimeControl "5400+30"]

{[%evp 9,78,16,0,0,11,0,0,-15,-20,-25,-31,-19,-26,-41,-50,-74,-45,-83,-95,-75,-81,-74,-77,-95,-93,-87,-66,-88,-95,-85,-88,-71,-85,-181,-188,-243,-232,-351,-375,-709,-714,-716,-708,-609,-390,-464,-423,-412,-411,-1005,-575,-705,-588,-592,-586,-641,-384,-358,0,0,189,0,0,0,0,0,0,0,0,0,0]} 1. d4 {[%emt 0:00:06] Golod,V} Nf6 {[%emt 0:25:58]} 2. Nf3 {[%emt 0:00:14]} g6 {[%emt 0:01:30]} 3. c4 {[%emt 0:00:17]} Bg7 {[%emt 0:00:24]} 4. Nc3 {[%emt 0:00:09]} O-O {[%emt 0:01:32]} 5. g3 {[%emt 0:00:12]} c6 {[%emt 0:02:22]} 6. e4 {[%emt 0:07:05] E61: King's Indian: Early deviations for White, including Smyslov System.} d5 {[%emt 0:04:04]} 7. e5 {[%emt 0:01:34]} Ne4 {[%emt 0:04:14]} 8. Bg2 {[%emt 0:00:55]} Nxc3 {[%emt 0:05:38]} 9. bxc3 {[%emt 0:00:05]} dxc4 {[%emt 0:00:10][%cal Oc6c5] [#]} 10. O-O $146 {[%emt 0:01:22]} ({Predecessor:} 10. h4 c5 11. h5 cxd4 12. cxd4 Nc6 13. Be3 Bf5 14. Kf1 Nb4 15. hxg6 hxg6 16. Qd2 {½-½ (51) Greenfeld,A (2530)-Golod,V (2535) Givataim 1998 CBM 065 [Golod,V]}) 10... Be6 {[%emt 0:06:00]} 11. Re1 {[%emt 0:10:59]} Bd5 {[%emt 0:00:43]} 12. Ba3 {[%emt 0:15:12]} Re8 {[%emt 0:01:02]} 13. Ng5 {[%emt 0:00:33]} Bxg2 {[%emt 0:08:49]} 14. Kxg2 {[%emt 0:00:21]} Qd5+ {[%emt 0:00:30]} 15. Kg1 {[%emt 0:01:21]} Na6 {[%emt 0:10:03]} 16. h4 {[%emt 0:10:55]} f6 {[%emt 0:01:50][%cal Bf7f6,Bf6f5][%mdl 32]} 17. Ne4 {[%emt 0:05:09]} Rad8 {[%emt 0:11:15]} 18. h5 {[%emt 0:15:47]} f5 {[%emt 0:05:39]} 19. Ng5 {[%emt 0:04:29]} c5 {[%emt 0:00:32][%cal Bc6c5,Bc5d4][%mdl 32]} 20. hxg6 {[%emt 0:00:14]} hxg6 {[%emt 0:00:01][%cal Rc5d4]} 21. e6 {[%emt 0:01:54]} (21. Rb1 $17) 21... cxd4 $19 {[%emt 0:00:58]} 22. Nf7 {[%emt 0:01:21]} (22. Qc1 $142 dxc3 23. Nf7) 22... Rc8 {[%emt 0:01:43][%cal Bd8c8,Bc8c6,Bc6e6][%mdl 32]} 23. Qd2 {[%emt 0:07:39]} (23. cxd4 $142 Nc7 24. Ne5) 23... Rc6 $1 {[%emt 0:00:19]} 24. Qg5 $2 {[%emt 0:02:28]} (24. cxd4 b5 25. Ne5 Rxe6 26. Rad1) 24... Rxe6 {[%emt 0:00:21]} 25. Nh6+ {[%emt 0:00:03]} Kh7 {[%emt 0:02:23]} 26. Ng4 {[%emt 0:00:54]} Re4 {[%emt 0:02:26]} 27. f3 {[%emt 0:00:35]} Rxe1+ {[%emt 0:01:07]} 28. Rxe1 {[%emt 0:00:04]} Qxf3 {[%emt 0:01:16]} 29. Nh2 {[%emt 0:02:58]} (29. Ne5 $142 Qh5 30. Qxh5+ gxh5 31. cxd4) 29... Qh5 {[%emt 0:00:32]} 30. Qd2 {[%emt 0:00:43]} e5 {[%emt 0:00:55][%cal Be7e5,Be5e4][%mdl 32]} 31. cxd4 {[%emt 0:00:06]} e4 {[%emt 0:00:40]} 32. Kg2 {[%emt 0:01:04]} Rh8 {[%emt 0:00:45]} 33. Qa5 {[%emt 0:00:33]} Bxd4 $2 {[%emt 0:00:39]} (33... c3 $19 34. g4 fxg4 35. Qxc3 Rd8 36. Rxe4 Qd5) 34. Qd5 $11 {[%emt 0:00:23][%csl LRb7,LRc4,LRd4]} Bf6 {[%emt 0:00:31] [#]} (34... Bg7 $1 $11 {and Black has nothing to worry.} 35. Rh1 Qe2+ 36. Kg1 Qe3+ 37. Kg2 Qe2+ 38. Kg1 Qe3+ 39. Kg2 Qe2+) 35. Qf7+ $2 {[%emt 0:00:14]} (35. Ng4 $1 $18 {[%mdl 512]} fxg4 36. Rh1 Qxh1+ 37. Kxh1) 35... Bg7 {[%emt 0:00:01] ...Rd8 is the strong threat. The position is equal.} 36. Bb2 {[%emt 0:00:07][%csl Gb2][%cal Rf7g7]} Rg8 {[%emt 0:01:38]} 37. Rh1 {[%emt 0:03:25]} Qe2+ {[%emt 0:00:00]} 38. Kg1 $1 {[%emt 0:00:06] Ng4+ would kill now.} Qe3+ {[%emt 0:00:00]} 39. Kg2 {[%emt 0:00:10] White wants to mate with Ng4+. The board is on fire.} Qe2+ {[%emt 0:00:00] And White is the lucky defender.  Weighted Error Value: White=0.55/Black=0.26 (precise)} 1/2-1/2

[Event "15th Arad Open 2022"]
[Site "Arad"]
[Date "2022.08.10"]
[Round "4.6"]
[White "Balaban-Voia, Alexandru"]
[Black "Ionescu, Mihai"]
[Result "0-1"]
[ECO "A07"]
[WhiteElo "1869"]
[BlackElo "2250"]
[Annotator "TA"]
[PlyCount "88"]
[EventDate "2022.08.08"]
[EventType "swiss"]
[EventCountry "ROU"]
[SourceTitle "playchess.com"]
[Source "ChessBase"]
[SourceQuality "1"]
[TimeControl "5400+30"]

{[%evp 11,88,0,29,13,32,16,25,19,20,10,7,8,10,0,0,11,29,22,29,29,38,38,38,23,33,0,0,0,0,-7,0,-12,0,-8,0,-18,-18,-18,-18,-18,-18,-18,-18,-27,-22,-27,-27,-22,-5,-22,-21,-22,-21,-21,-18,-18,-16,-608,-604,-29968,-29969,-29967,-29969,-29961,-29951,-29952,-29953,-29949,-29946,-11533,-7288,-6211,-4133,-6440,-6354,-6195,-5873,-1576,-1306]} 1. g3 {[%emt 0:04:03]} d5 {[%emt 0:01:41]} 2. Bg2 {[%emt 0:00:32]} Nf6 {[%emt 0:00:16]} 3. Nf3 {[%emt 0:00:17]} c6 {[%emt 0:01:09]} 4. b3 {[%emt 0:05:38]} Bg4 {[%emt 0:01:42]} 5. Bb2 {[%emt 0:05:30]} Nbd7 {[%emt 0:00:35]} 6. d3 {[%emt 0:03:13]} Bxf3 {[%emt 0:04:52]} 7. Bxf3 {[%emt 0:00:19] A07: Réti Opening: New York and Capablanca Systems.} e6 {[%emt 0:00:07]} 8. Nd2 {[%emt 0:09:30]} Bd6 {[%emt 0:00:26]} 9. e4 {[%emt 0:03:50] White has an edge.} dxe4 {[%emt 0:06:08]} 10. Nxe4 {[%emt 0:09:37]} Nxe4 {[%emt 0:01:09]} 11. Bxe4 {[%emt 0:05:15] This bishop pair is nice.} Qa5+ {[%emt 0:05:56]} 12. Qd2 {[%emt 0:07:20] [#]} Qxd2+ $146 {[%emt 0:01:51]} ({Predecessor:} 12... Bb4 13. c3 Be7 14. d4 O-O 15. O-O Rad8 16. Qc2 Nf6 17. Bf3 Rd7 18. Rad1 Rfd8 {½-½ (25) Bronstein,D-Petrosian,T Zagreb 1965}) 13. Kxd2 {[%emt 0:00:06]} Be5 {[%emt 0:00:30]} 14. d4 {[%emt 0:03:45]} Bf6 {[%emt 0:00:42]} 15. c3 {[%emt 0:03:33]} O-O-O {[%emt 0:00:42]} 16. Kc2 {[%emt 0:04:51]} h5 {[%emt 0:02:49]} 17. h3 {[%emt 0:04:13]} Nb6 {[%emt 0:00:29]} 18. f4 {[%emt 0:03:11]} Nd5 {[%emt 0:01:25]} 19. Bxd5 {[%emt 0:01:37]} exd5 {[%emt 0:01:09]} 20. Rae1 {[%emt 0:03:09]} Rde8 {[%emt 0:01:04]} 21. Kd3 {[%emt 0:04:16]} Kd7 {[%emt 0:00:38]} 22. Bc1 {[%emt 0:03:16]} Be7 {[%emt 0:02:39]} 23. Rh2 {[%emt 0:04:14]} Bd6 {[%emt 0:01:12]} 24. Rxe8 {[%emt 0:01:24]} Rxe8 {[%emt 0:00:11]} 25. Re2 {[%emt 0:00:21]} Rxe2 {[%emt 0:02:15]} 26. Kxe2 $11 {[%emt 0:00:04][%mdl 4096] Endgame KB-KB} f5 {[%emt 0:00:18]} 27. h4 {[%emt 0:01:05]} a6 {[%emt 0:01:03]} 28. Be3 {[%emt 0:07:08]} Kc7 {[%emt 0:01:45]} 29. Kd3 {[%emt 0:02:31]} Kb6 {[%emt 0:01:31]} 30. a4 {[%emt 0:00:40]} Ka5 {[%emt 0:03:08]} 31. Kc2 {[%emt 0:00:36]} b5 {[%emt 0:02:25]} 32. axb5 {[%emt 0:00:02]} cxb5 {[%emt 0:01:33][%cal Bc6b5,Bb5b4,Bb4c3][%mdl 32]} 33. Bd2 {[%emt 0:00:36]} b4 {[%emt 0:10:08]} 34. Kd3 {[%emt 0:01:13][%mdl 8192] [#] Now White is beyond hope.} (34. c4 $11) 34... bxc3 $19 {[%emt 0:00:20]} 35. Be1 {[%emt 0:00:09]} Bb4 {[%emt 0:01:45]} 36. Kc2 {[%emt 0:00:24]} Kb5 {[%emt 0:00:25]} 37. Bf2 {[%emt 0:00:03]} a5 {[%emt 0:01:02]} 38. Be1 {[%emt 0:01:21]} a4 {[%emt 0:00:47]} 39. bxa4+ {[%emt 0:00:33]} Kxa4 {[%emt 0:00:25]} 40. Bf2 {[%emt 0:00:00]} Kb5 {[%emt 0:00:00] [#] ( -> ...Kc4). Black is clearly winning.} 41. Kb3 {[%emt 0:00:00]} Ba5 {[%emt 0:00:00]} 42. Bg1 {[%emt 0:00:00]} c2 {[%emt 0:00:00]} 43. Kxc2 {[%emt 0:00:00]} Kc4 {[%emt 0:00:00]} 44. Bf2 {[%emt 0:00:00]} Bc3 {[%emt 0:00:00] Weighted Error Value: White=0.54/Black=0.12 (very precise)} 0-1

[Event "15th Arad Open 2022"]
[Site "Arad"]
[Date "2022.08.10"]
[Round "4.7"]
[White "Ungureanu, Sandu"]
[Black "Srbis, Jurica"]
[Result "0-1"]
[ECO "C45"]
[WhiteElo "2011"]
[BlackElo "2472"]
[Annotator "TA"]
[PlyCount "100"]
[EventDate "2022.08.08"]
[EventType "swiss"]
[EventCountry "ROU"]
[SourceTitle "playchess.com"]
[Source "ChessBase"]
[SourceQuality "1"]
[TimeControl "5400+30"]

{[%evp 13,100,9,8,0,0,-25,-19,-25,-27,-29,-7,-34,-17,-98,-87,-109,-117,-129,-138,-131,-129,-138,-117,-131,-127,-120,-132,-173,-152,-157,-166,-388,-392,-383,-376,-380,-374,-392,-416,-422,-406,-398,-403,-381,-286,-449,-391,-397,-329,-542,-538,-490,-355,-297,-255,-255,-255,-252,-248,-248,-247,-241,-208,-247,-247,-273,-266,-263,-248,-335,-335,-291,-192,-243,-191,-452,-452,-535,-515,-29979,-29981,-29981,-29982,-29982,-29983,-29984,-29985,-29985,-29986]} 1. e4 {[%emt 0:00:22]} e5 {[%emt 0:00:23]} 2. Nf3 {[%emt 0:00:21]} Nc6 {[%emt 0:00:06]} 3. d4 {[%emt 0:00:34]} exd4 {[%emt 0:00:08]} 4. Nxd4 {[%emt 0:00:05]} Nf6 {[%emt 0:01:01][%cal Bg8f6,Bf6d7,Bd7c5,Bc5d3][%mdl 32]} 5. Nxc6 {[%emt 0:00:07]} bxc6 {[%emt 0:00:07]} 6. Bd3 {[%emt 0:00:10]} d5 {[%emt 0:00:21]} 7. Qe2 {[%emt 0:00:41]} Be7 {[%emt 0:08:46]} ({Weaker is} 7... Nxe4 8. f3 $16) 8. e5 {[%emt 0:00:50] C45: Scotch Game.} Nd7 {[%emt 0:00:30]} 9. e6 {[%emt 0:00:43]} Nc5 {[%emt 0:03:22]} 10. exf7+ {[%emt 0:01:12] The position is equal.} Kxf7 {[%emt 0:00:03]} 11. O-O {[%emt 0:03:30]} Nxd3 {[%emt 0:01:31]} 12. Qxd3 {[%emt 0:00:13] [#]} Bd6 $146 {[%emt 0:03:36] Inhibits Bf4.} ({Predecessor:} 12... Qd7 13. Nc3 Qf5 14. Qxf5+ Bxf5 15. Bf4 Rhe8 16. Rac1 Rab8 17. Na4 Rb4 18. b3 Rxf4 {0-1 (27) Wiehl,H-Friedrich,E freechess.de 2014}) 13. Qf3+ {[%emt 0:04:21]} (13. Be3 $1 $11 {remains equal.}) 13... Qf6 $17 {[%emt 0:00:55] Strongly threatening ...Qxf3.} 14. Qxf6+ {[%emt 0:00:07]} gxf6 {[%emt 0:00:46]} 15. Re1 {[%emt 0:02:48]} Bf5 $40 {[%emt 0:13:39][%mdl 128] Black has strong attack.} 16. c3 {[%emt 0:01:34]} a5 {[%emt 0:00:53]} 17. Be3 {[%emt 0:01:33]} Rab8 {[%emt 0:03:35]} 18. b3 {[%emt 0:01:07]} Rhe8 {[%emt 0:00:12][%cal Oa5a4]} 19. Nd2 {[%emt 0:00:56]} Ba3 {[%emt 0:00:13] Black is more active.} 20. Ba7 {[%emt 0:02:21]} Ra8 {[%emt 0:00:44]} 21. Rxe8 {[%emt 0:01:44]} Rxe8 {[%emt 0:00:08]} (21... Kxe8 22. Bd4 $15) 22. Bd4 {[%emt 0:02:16]} (22. Be3) 22... c5 $19 {[%emt 0:02:11]} 23. Be3 {[%emt 0:00:58]} Bb2 $1 {[%emt 0:00:08][%csl LRa1,LRc3] A strong pair of Bishops.} 24. Rd1 {[%emt 0:01:40]} Bxc3 {[%emt 0:02:54]} 25. Nf3 {[%emt 0:00:15]} d4 {[%emt 0:01:43]} 26. Bd2 {[%emt 0:01:09]} Bxd2 {[%emt 0:06:48]} 27. Rxd2 {[%emt 0:03:05][%mdl 4096] Endgame KRB-KRN} a4 {[%emt 0:03:44]} 28. h3 {[%emt 0:02:40]} Be4 {[%emt 0:05:34]} 29. Ne1 {[%emt 0:04:37]} (29. Nxd4 $142 cxd4 30. Rxd4) 29... axb3 {[%emt 0:00:45]} 30. axb3 {[%emt 0:00:25]} Rb8 {[%emt 0:00:14]} 31. f3 $2 {[%emt 0:01:40]} (31. Nd3 Bxd3 32. Rxd3) 31... Bg6 {[%emt 0:00:03]} 32. Nd3 {[%emt 0:00:38]} Rb5 {[%emt 0:00:09]} 33. Nc1 {[%emt 0:00:58]} c4 {[%emt 0:02:35]} 34. Rxd4 {[%emt 0:00:56]} cxb3 {[%emt 0:00:26]} 35. Nxb3 {[%emt 0:00:06]} Rxb3 {[%emt 0:00:03] KRB-KR} 36. Rd7+ {[%emt 0:00:05]} Ke6 {[%emt 0:00:20]} 37. Rxc7 {[%emt 0:00:05]} Bd3 {[%emt 0:05:55]} 38. Kf2 {[%emt 0:03:53]} Rb2+ {[%emt 0:00:11]} 39. Ke3 {[%emt 0:00:49]} Bg6 {[%emt 0:00:46] ...Kd6 is the strong threat.} 40. g3 {[%emt 0:00:00]} Rb3+ {[%emt 0:00:00]} 41. Kf4 {[%emt 0:00:00]} Bd3 {[%emt 0:00:00]} 42. g4 {[%emt 0:00:00]} h6 {[%emt 0:00:00] [#] White must now prevent ...Be2.} 43. Rc6+ {[%emt 0:00:00]} (43. Rc8 $142) 43... Ke7 {[%emt 0:00:00] aiming for ...Be2.} 44. h4 $2 {[%emt 0:00:00]} (44. Rc1) 44... Be2 {[%emt 0:00:00]} 45. Rc7+ {[%emt 0:00:00]} Kd6 {[%emt 0:00:00]} 46. Rh7 {[%emt 0:00:00] [#]} (46. Rc8 $19) 46... Rxf3+ {[%emt 0:00:00] Black mates.} 47. Ke4 {[%emt 0:00:00]} Bd3+ {[%emt 0:00:00]} 48. Kxf3 {[%emt 0:00:00]} Bxh7 {[%emt 0:00:00]} 49. g5 {[%emt 0:00:00]} hxg5 {[%emt 0:00:00]} 50. hxg5 {[%emt 0:00:00]} f5 {[%emt 0:00:00] White did not feel at home in the position after the opening.  Weighted Error Value: White=0.58/Black=0.15 (very precise)} ({Inferior is} 50... fxg5 51. Kg4 $11) 0-1